fUSD/lending_fUSD_20251123
["ID","MTS","AMOUNT","RATE_DAILY","PERIOD"]
[394700739,1763905904890,-500.0,0.00039178,8]
[394700740,1763905904900,-500.0,0.00039178,8]
[394700741,1763905904910,-500.0,0.00039178,8]
[394700742,1763905904921,-500.0,0.00039178,8]
[394700743,1763905904931,-500.0,0.00039178,8]
[394700744,1763905904941,-500.0,0.00039178,8]
[394700745,1763905904951,-500.0,0.00039178,8]
[394700746,1763905904962,-502.0939095,0.00039178,8]
[394700747,1763905904972,-500.0,0.00039178,8]
[394700748,1763905904981,-1083.3,0.00039178,8]
[394700749,1763905904991,-652.37,0.00039178,8]
[394700750,1763905905001,-500.0,0.00039178,8]
[394700751,1763905905011,-1037.03,0.00039178,8]
[394700752,1763905905022,-500.0,0.00039178,8]
[394700753,1763905905033,-500.0,0.00039178,8]
[394700754,1763905905043,-603.39,0.00039178,8]
[394700755,1763905905053,-500.0,0.00039178,8]
[394700756,1763905905063,-500.0,0.00039178,8]
[394700757,1763905905073,-500.0,0.00039178,8]
[394700758,1763905905082,-500.0,0.00039178,8]
[394700759,1763905905092,-500.0,0.00039178,8]
[394700760,1763905905102,-500.0,0.00039178,8]
[394700761,1763905905112,-753.37,0.00039178,8]
[394700762,1763905905124,-500.57,0.00039178,8]
[394700763,1763905905311,-500.0,0.00039178,8]
[394700764,1763905905342,-630.06,0.00039178,8]
[394700765,1763905905351,-500.0,0.00039178,8]
[394700766,1763905905361,-2821.61,0.00039178,8]
[394700767,1763905905371,-500.0,0.00039178,8]
[394700768,1763905905381,-600.0,0.00039178,8]
[394700769,1763905905390,-745.91,0.00039178,8]
[394700770,1763905905399,-500.0,0.00039178,8]
[394700771,1763905905409,-663.82,0.00039178,8]
[394700772,1763905905419,-500.0,0.00039178,8]
[394700773,1763905905429,-500.0,0.00039178,8]
[394700774,1763905905439,-500.0,0.00039178,8]
[394700775,1763905905449,-500.0,0.00039178,8]
[394700776,1763905905458,-548.05,0.00039178,8]
[394700777,1763905905470,-1021.65,0.00039178,8]
[394700778,1763905905483,-500.0,0.00039178,8]
[394700779,1763905905493,-500.0,0.00039178,8]
[394700780,1763905905503,-245.00180389,0.00039178,8]
[394700781,1763905905512,-573.67,0.00039178,8]
[394700782,1763905905523,-500.0,0.00039178,8]
[394700783,1763905905532,-500.0,0.00039178,8]
[394700784,1763905905541,-500.0,0.00039178,8]
[394700785,1763905905551,-500.0,0.00039178,8]
[394700786,1763905905562,-1218.63,0.00039178,8]
[394700787,1763905905571,-500.0,0.00039178,8]
[394700788,1763905905581,-776.2,0.00039178,8]
[394700789,1763905905590,-500.0,0.00039178,8]
[394700790,1763905905600,-2520.27,0.00039178,8]
[394700791,1763905905610,-500.0,0.00039178,8]
[394700792,1763905905620,-500.0,0.00039178,8]
[394700793,1763905905630,-500.0,0.00039178,8]
[394700794,1763905905640,-753.51,0.00039178,8]
[394700795,1763905905650,-500.0,0.00039178,8]
[394700796,1763905905660,-500.0,0.00039178,8]
[394700797,1763905905669,-500.0,0.00039178,8]
[394700798,1763905905679,-500.0,0.00039178,8]
[394700799,1763905905689,-256.44,0.00039178,8]
[394700800,1763905905699,-500.0,0.00039178,8]
[394700801,1763905905708,-392.75718976,0.00039178,5]
[394700802,1763905905718,-500.0,0.00039178,8]
[394700803,1763905905727,-500.0,0.00039178,8]
[394700804,1763905905737,-506.16924525,0.00039178,8]
[394700805,1763905905747,-500.0,0.00039178,8]
[394700806,1763905905756,-858.86,0.00039178,8]
[394700807,1763905905766,-500.0,0.00039178,8]
[394700808,1763905905776,-500.0,0.00039178,8]
[394700809,1763905905786,-479.27577321,0.00039178,8]
[394700810,1763905905795,-500.0,0.00039178,8]
[394700811,1763905905805,-500.0,0.00039178,8]
[394700812,1763905905814,-500.0,0.00039178,8]
[394700813,1763905905823,-500.0,0.00039178,8]
[394700814,1763905905833,-595.6,0.00039178,8]
[394700815,1763905905842,-500.0,0.00039178,8]
[394700816,1763905905851,-500.0,0.00039178,2]
[394700817,1763905905861,-500.0,0.00039178,8]
[394700818,1763905905871,-500.0,0.00039178,8]
[394700819,1763905905880,-1292.53,0.00039178,8]
[394700820,1763905905890,-1655.43,0.00039178,8]
[394700821,1763905905899,-500.0,0.00039178,8]
[394700822,1763905905908,-500.0,0.00039178,8]
[394700823,1763905905917,-967.83,0.00039178,8]
[394700824,1763905905926,-500.0,0.00039178,8]
[394700825,1763905905936,-993.25,0.00039178,8]
[394700826,1763905905945,-500.0,0.00039178,8]
[394700827,1763905905955,-588.86,0.00039178,8]
[394700828,1763905905965,-500.0,0.00039178,8]
[394700829,1763905905975,-500.0,0.00039178,8]
[394700830,1763905905984,-500.0,0.00039178,8]
[394700831,1763905905995,-500.0,0.00039178,8]
[394700832,1763905906005,-897.63,0.00039178,8]
[394700833,1763905906015,-502.34945319,0.00039178,8]
[394700834,1763905906025,-500.0,0.00039178,8]
[394700835,1763905906034,-500.0,0.00039178,8]
[394700836,1763905906044,-500.0,0.00039178,8]
[394700837,1763905906054,-500.0,0.00039178,8]
[394700838,1763905906063,-500.0,0.00039178,8]
[394700839,1763905906073,-500.0,0.00039178,8]
[394700840,1763905906082,-563.39,0.00039178,8]
[394700841,1763905906091,-1139.51,0.00039178,8]
[394700842,1763905906101,-513.55,0.00039178,8]
[394700843,1763905906108,-921.29,0.00039178,8]
[394700844,1763905906117,-637.21,0.00039178,8]
[394700845,1763905906126,-500.0,0.00039178,8]
[394700846,1763905906135,-500.0,0.00039178,8]
[394700847,1763905906145,-667.24,0.00039178,8]
[394700848,1763905906154,-500.0,0.00039178,8]
[394700849,1763905906164,-500.0,0.00039178,8]
[394700850,1763905906173,-500.0,0.00039178,8]
[394700851,1763905906183,-500.0,0.00039178,8]
[394700852,1763905906193,-500.0,0.00039178,8]
[394700853,1763905906202,-500.0,0.00039178,8]
[394700854,1763905906212,-500.0,0.00039178,8]
[394700855,1763905906221,-1216.71,0.00039178,8]
[394700856,1763905906230,-507.97412208,0.00039178,8]
[394700857,1763905906241,-2238.0,0.00039178,8]
[394700858,1763905906250,-773.42,0.00039178,8]
[394700859,1763905906259,-500.0,0.00039178,8]
[394700860,1763905906268,-500.0,0.00039178,8]
[394700861,1763905906278,-671.74,0.00039178,8]
[394700862,1763905906288,-523.61,0.00039178,8]
[394700863,1763905906297,-1057.49,0.00039178,8]
[394700864,1763905906306,-733.1,0.00039178,8]
[394700865,1763905906316,-500.0,0.00039178,8]
[394700866,1763905906325,-500.0,0.00039178,8]
[394700867,1763905906335,-500.0,0.00039178,8]
[394700868,1763905906344,-500.0,0.00039178,8]
[394700869,1763905906353,-900.28,0.00039178,8]
[394700870,1763905906362,-500.0,0.00039178,8]
[394700871,1763905906372,-500.0,0.00039178,8]
[394700872,1763905906382,-1475.36,0.00039178,8]
[394700873,1763905906393,-500.0,0.00039178,8]
[394700874,1763905906402,-666.14,0.00039178,8]
[394700875,1763905906412,-514.79,0.00039178,8]
[394700876,1763905906422,-204.18291778,0.00039178,2]
[394700877,1763905906432,-701.96,0.00039178,8]
[394700878,1763905906442,-584.4,0.00039178,8]
[394700879,1763905906451,-500.0,0.00039178,8]
[394700880,1763905906462,-500.0,0.00039178,8]
[394700881,1763905906474,-750.11,0.00039178,8]
[394700882,1763905906484,-500.0,0.00039178,8]
[394700883,1763905906495,-500.0,0.00039178,8]
[394700884,1763905906505,-404.54354874,0.00039178,8]
[394700885,1763905906514,-500.0,0.00039178,8]
[394700886,1763905906524,-673.59,0.00039178,8]
[394700887,1763905906533,-845.53,0.00039178,8]
[394700888,1763905906543,-500.0,0.00039178,8]
[394700889,1763905906554,-500.0,0.00039178,8]
[394700890,1763905906564,-700.0,0.00039178,120]
[394700891,1763905906574,-500.0,0.00039178,8]
[394700892,1763905906584,-500.0,0.00039178,8]
[394700893,1763905906593,-500.0,0.00039178,8]
[394700894,1763905906603,-500.0,0.00039178,8]
[394700895,1763905906613,-651.65,0.00039178,8]
[394700896,1763905906622,-500.0,0.00039178,8]
[394700897,1763905906632,-593.65,0.00039178,8]
[394700898,1763905906642,-500.0,0.00039178,8]
[394700899,1763905906651,-500.0,0.00039178,8]
[394700900,1763905906661,-590.58,0.00039178,8]
[394700901,1763905906671,-500.0,0.00039178,8]
[394700902,1763905906680,-500.0,0.00039178,8]
[394700903,1763905906689,-500.0,0.00039178,8]
[394700904,1763905906699,-500.0,0.00039178,8]
[394700905,1763905906709,-1000.0,0.00039178,8]
[394700906,1763905906719,-500.0,0.00039178,8]
[394700907,1763905906729,-500.0,0.00039178,8]
[394700908,1763905906740,-500.0,0.00039178,8]
[394700909,1763905906750,-500.0,0.00039178,8]
[394700910,1763905906760,-842.8,0.00039178,8]
[394700911,1763905906769,-500.0,0.00039178,8]
[394700912,1763905906779,-500.0,0.00039178,8]
[394700913,1763905906788,-505.99,0.00039178,8]
[394700914,1763905906798,-500.0,0.00039178,8]
[394700915,1763905906807,-500.0,0.00039178,8]
[394700916,1763905906817,-501.23591629,0.00039178,8]
[394700917,1763905906828,-500.0,0.00039178,8]
[394700918,1763905906838,-500.0,0.00039178,8]
[394700919,1763905906847,-500.0,0.00039178,8]
[394700920,1763905906857,-573.64,0.00039178,8]
[394700921,1763905906866,-500.0,0.00039178,8]
[394700922,1763905906876,-500.0,0.00039178,8]
[394700923,1763905906885,-500.0,0.00039178,8]
[394700924,1763905906895,-500.0,0.00039178,8]
[394700925,1763905906905,-500.0,0.00039178,8]
[394700926,1763905906914,-1417.14,0.00039178,8]
[394700927,1763905906924,-693.05,0.00039178,8]
[394700928,1763905906934,-500.0,0.00039178,8]
[394700929,1763905906944,-500.0,0.00039178,8]
[394700930,1763905906953,-500.0,0.00039178,8]
[394700931,1763905906962,-500.0,0.00039178,8]
[394700932,1763905906971,-2102.9,0.00039178,8]
[394700933,1763905906983,-500.0,0.00039178,8]
[394700934,1763905906993,-500.0,0.00039178,8]
[394700935,1763905907003,-500.0,0.00039178,8]
[394700936,1763905907012,-530.53,0.00039178,8]
[394700937,1763905907022,-500.0,0.00039178,8]
[394700938,1763905907032,-500.0,0.00039178,8]
[394700939,1763905907041,-500.0,0.00039178,8]
[394700940,1763905907050,-637.31,0.00039178,8]
[394700941,1763905907059,-600.86,0.00039178,8]
[394700942,1763905907068,-300.0,0.00039178,2]
[394700943,1763905907078,-842.85,0.00039178,8]
[394700944,1763905907087,-725.75,0.00039178,8]
[394700945,1763905907096,-500.0,0.00039178,8]
[394700946,1763905907105,-507.32396773,0.00039178,120]
[394700947,1763905907114,-500.0,0.00039178,8]
[394700948,1763905907124,-578.58,0.00039178,8]
[394700949,1763905907134,-500.0,0.00039178,8]
[394700950,1763905907143,-500.0,0.00039178,8]
[394700951,1763905907153,-1146.9,0.00039178,8]
[394700952,1763905907162,-500.0,0.00039178,8]
[394700953,1763905907172,-895.76,0.00039178,8]
[394700954,1763905907181,-500.0,0.00039178,8]
[394700955,1763905907192,-500.0,0.00039178,8]
[394700956,1763905907202,-1081.03,0.00039178,8]
[394700957,1763905907211,-745.65,0.00039178,8]
[394700958,1763905907220,-1322.07,0.00039178,8]
[394700959,1763905907230,-500.0,0.00039178,8]
[394700960,1763905907240,-500.0,0.00039178,8]
[394700961,1763905907249,-540.91,0.00039178,8]
[394700962,1763905907259,-500.0,0.00039178,8]
[394700963,1763905907269,-500.0,0.00039178,8]
[394700964,1763905907278,-500.0,0.00039178,8]
[394700965,1763905907288,-500.0,0.00039178,8]
[394700966,1763905907297,-500.0,0.00039178,8]
[394700967,1763905907307,-500.0,0.00039178,8]
[394700968,1763905907316,-500.0,0.00039178,8]
[394700969,1763905907326,-500.0,0.00039178,8]
[394700970,1763905907337,-626.3,0.00039178,8]
[394700971,1763905907347,-500.0,0.00039178,8]
[394700972,1763905907356,-500.0,0.00039178,8]
[394700973,1763905907373,-885.98,0.00039178,8]
[394700974,1763905907391,-500.0,0.00039178,8]
[394700975,1763905907403,-500.0,0.00039178,8]
[394700976,1763905907417,-388.2896672,0.00039178,8]
[394700977,1763905907433,-500.0,0.00039178,8]
[394700978,1763905907450,-500.0,0.00039178,8]
[394700979,1763905907466,-578.3,0.00039178,8]
[394700980,1763905907483,-500.0,0.00039178,8]
[394700981,1763905907496,-500.0,0.00039178,8]
[394700982,1763905907511,-500.0,0.00039178,8]
[394700983,1763905907528,-1819.9,0.00039178,8]
[394700984,1763905907543,-500.0,0.00039178,8]
[394700985,1763905907559,-769.35,0.00039178,8]
[394700986,1763905907574,-500.0,0.00039178,8]
[394700987,1763905907588,-500.0,0.00039178,8]
[394700988,1763905907603,-240.40446409,0.00039178,8]
[394700989,1763905907617,-500.0,0.00039178,8]
[394700990,1763905907632,-1124.27,0.00039178,8]
[394700991,1763905907647,-500.0,0.00039178,8]
[394700992,1763905907661,-993.1,0.00039178,8]
[394700993,1763905907674,-669.7,0.00039178,8]
[394700994,1763905907686,-500.0,0.00039178,8]
[394700995,1763905907703,-1780.44,0.00039178,8]
[394700996,1763905907715,-545.47,0.00039178,8]
[394700997,1763905907725,-500.0,0.00039178,8]
[394700998,1763905907739,-500.0,0.00039178,8]
[394700999,1763905907755,-500.0,0.00039178,8]
[394701000,1763905907767,-500.0,0.00039178,120]
[394701001,1763905907781,-500.0,0.00039178,8]
[394701002,1763905907793,-500.0,0.00039178,8]
[394701003,1763905907805,-500.0,0.00039178,8]
[394701004,1763905907819,-815.52,0.00039178,8]
[394701005,1763905907833,-798.3,0.00039178,8]
[394701006,1763905907846,-500.0,0.00039178,8]
[394701007,1763905907858,-745.06,0.00039178,8]
[394701008,1763905907871,-500.0,0.00039178,8]
[394701009,1763905907884,-500.0,0.00039178,8]
[394701010,1763905907897,-500.0,0.00039178,8]
[394701011,1763905907910,-500.0,0.00039178,8]
[394701012,1763905907922,-500.0,0.00039178,8]
[394701013,1763905907934,-827.65,0.00039178,8]
[394701014,1763905907947,-500.0,0.00039178,8]
[394701015,1763905907961,-1145.35,0.00039178,8]
[394701016,1763905907973,-480.06166981,0.00039178,8]
[394701017,1763905907985,-500.0,0.00039178,8]
[394701018,1763905907997,-500.0,0.00039178,8]
[394701019,1763905908011,-1200.43,0.00039178,8]
[394701020,1763905908024,-500.0,0.00039178,8]
[394701021,1763905908037,-994.39,0.00039178,8]
[394701022,1763905908049,-500.0,0.00039178,8]
[394701023,1763905908062,-500.0,0.00039178,8]
[394701024,1763905908075,-500.0,0.00039178,8]
[394701025,1763905908087,-1171.77,0.00039178,8]
[394701026,1763905908100,-677.92,0.00039178,8]
[394701027,1763905908113,-500.0,0.00039178,8]
[394701028,1763905908125,-500.0,0.00039178,8]
[394701029,1763905908137,-1636.23,0.00039178,8]
[394701030,1763905908149,-500.0,0.00039178,8]
[394701031,1763905908162,-500.0,0.00039178,8]
[394701032,1763905908176,-500.0,0.00039178,8]
[394701033,1763905908189,-500.0,0.00039178,8]
[394701034,1763905908202,-500.0,0.00039178,8]
[394701035,1763905908215,-500.0,0.00039178,8]
[394701036,1763905908228,-500.0,0.00039178,8]
[394701037,1763905908241,-521.38,0.00039178,8]
[394701038,1763905908255,-500.0,0.00039178,8]
[394701039,1763905908267,-501.15,0.00039178,8]
[394701040,1763905908280,-500.0,0.00039178,8]
[394701041,1763905908292,-500.0,0.00039178,8]
[394701042,1763905908304,-500.0,0.00039178,8]
[394701043,1763905908317,-687.46,0.00039178,8]
[394701044,1763905908328,-500.0,0.00039178,8]
[394701045,1763905908341,-500.0,0.00039178,8]
[394701046,1763905908354,-500.0,0.00039178,8]
[394701047,1763905908366,-500.0,0.00039178,8]
[394701048,1763905908378,-500.0,0.00039178,8]
[394701049,1763905908390,-840.15,0.00039178,8]
[394701050,1763905908402,-770.53,0.00039178,8]
[394701051,1763905908413,-500.0,0.00039178,8]
[394701052,1763905908425,-500.0,0.00039178,8]
[394701053,1763905908438,-635.24,0.00039178,8]
[394701054,1763905908450,-500.0,0.00039178,8]
[394701055,1763905908462,-500.0,0.00039178,8]
[394701056,1763905908477,-693.54,0.00039178,8]
[394701057,1763905908490,-500.0,0.00039178,8]
[394701058,1763905908502,-500.0,0.00039178,8]
[394701059,1763905908515,-532.13,0.00039178,8]
[394701060,1763905908528,-500.0,0.00039178,8]
[394701061,1763905908541,-500.0,0.00039178,8]
[394701062,1763905908554,-500.0,0.00039178,8]
[394701063,1763905908566,-500.0,0.00039178,8]
[394701064,1763905908578,-500.0,0.00039178,8]
[394701065,1763905908591,-500.0,0.00039178,8]
[394701066,1763905908603,-500.0,0.00039178,8]
[394701067,1763905908616,-835.58,0.00039178,8]
[394701068,1763905908628,-720.91,0.00039178,8]
[394701069,1763905908639,-604.61,0.00039178,8]
[394701070,1763905908651,-770.23,0.00039178,8]
[394701071,1763905908664,-500.0,0.00039178,8]
[394701072,1763905908676,-690.08,0.00039178,8]
[394701073,1763905908687,-500.0,0.00039178,8]
[394701074,1763905908699,-1101.38,0.00039178,8]
[394701075,1763905908710,-500.0,0.00039178,8]
[394701076,1763905908721,-500.0,0.00039178,8]
[394701077,1763905908733,-500.0,0.00039178,8]
[394701078,1763905908745,-500.0,0.00039178,8]
[394701079,1763905908756,-741.61,0.00039178,8]
[394701080,1763905908768,-1024.83,0.00039178,8]
[394701081,1763905908780,-1251.52,0.00039178,8]
[394701082,1763905908791,-696.09,0.00039178,8]
[394701083,1763905908802,-500.0,0.00039178,8]
[394701084,1763905908814,-500.0,0.00039178,8]
[394701085,1763905908825,-500.0,0.00039178,8]
[394701086,1763905908837,-500.0,0.00039178,8]
[394701087,1763905908850,-500.0,0.00039178,8]
[394701088,1763905908861,-500.0,0.00039178,8]
[394701089,1763905908872,-500.0,0.00039178,8]
[394701090,1763905908885,-500.0,0.00039178,8]
[394701091,1763905908897,-500.0,0.00039178,8]
[394701092,1763905908908,-1044.34,0.00039178,8]
[394701093,1763905908921,-902.05,0.00039178,8]
[394701094,1763905908932,-506.01,0.00039178,8]
[394701095,1763905908943,-500.0,0.00039178,8]
[394701096,1763905908955,-500.0,0.00039178,8]
[394701097,1763905908967,-500.0,0.00039178,8]
[394701098,1763905908978,-500.0,0.00039178,8]
[394701099,1763905908990,-695.25,0.00039178,8]
[394701100,1763905909001,-893.94,0.00039178,8]
[394701101,1763905909013,-500.0,0.00039178,8]
[394701102,1763905909025,-500.0,0.00039178,8]
[394701103,1763905909037,-522.25,0.00039178,8]
[394701104,1763905909050,-500.0,0.00039178,8]
[394701105,1763905909062,-777.35,0.00039178,8]
[394701106,1763905909074,-395.27121856,0.00039178,8]
[394701107,1763905909086,-259.9,0.00039178,8]
[394701108,1763905909098,-481.77,0.00039178,8]
[394701109,1763905909111,-500.0,0.00039178,8]
[394701110,1763905909123,-500.0,0.00039178,8]
[394701111,1763905909135,-500.0,0.00039178,8]
[394701112,1763905909147,-500.0,0.00039178,8]
[394701113,1763905909159,-500.0,0.00039178,8]
[394701114,1763905909171,-500.0,0.00039178,8]
[394701115,1763905909182,-500.0,0.00039178,8]
[394701116,1763905909193,-500.0,0.00039178,8]
[394701117,1763905909204,-500.0,0.00039178,8]
[394701118,1763905909216,-532.02585674,0.00039178,8]
[394701119,1763905909227,-500.0,0.00039178,8]
[394701120,1763905909240,-500.0,0.00039178,8]
[394701121,1763905909257,-1000.0,0.00039178,120]
[394701122,1763905909269,-1000.0,0.00039188,120]
[394701123,1763905909279,-1000.0,0.00039197,120]
[394701124,1763905909290,-1003.55,0.000392,90]
[394701125,1763905909302,-1000.0,0.00039206,120]
[394701126,1763905909312,-1000.0,0.00039216,120]
[394701127,1763905909324,-1000.0,0.00039225,120]
[394701128,1763905909335,-1579.0,0.00039231,20]
[394701129,1763905909347,-1000.0,0.00039235,120]
[394701130,1763905909360,-1000.0,0.00039244,120]
[394701131,1763905909372,-1000.0,0.00039254,120]
[394701132,1763905909382,-1000.0,0.00039263,120]
[394701133,1763905909394,-1000.0,0.00039273,120]
[394701134,1763905909406,-1000.0,0.00039282,120]
[394701135,1763905909416,-1000.0,0.00039291,120]
[394701136,1763905909428,-1000.0,0.00039301,120]
[394701137,1763905909439,-1000.0,0.0003931,120]
[394701138,1763905909451,-1000.0,0.0003932,120]
[394701139,1763905909462,-1000.0,0.00039329,120]
[394701140,1763905909477,-1000.0,0.00039339,120]
[394701141,1763905909490,-1000.0,0.00039348,120]
[394701142,1763905909501,-1000.0,0.00039358,120]
[394701143,1763905909514,-1000.0,0.00039367,120]
[394701144,1763905909526,-1000.0,0.00039376,120]
[394701145,1763905909538,-1000.0,0.00039386,120]
[394701146,1763905909549,-1000.0,0.00039395,120]
[394701147,1763905909560,-1000.0,0.00039405,120]
[394701148,1763905909572,-1000.0,0.00039414,120]
[394701149,1763905909583,-1000.0,0.00039424,120]
[394701150,1763905909595,-1000.0,0.00039433,120]
[394701151,1763905909607,-1000.0,0.00039443,120]
[394701152,1763905909619,-500.0,0.00039452,8]
[394701153,1763905909631,-502.54464448,0.00039452,8]
[394701154,1763905909642,-502.56674524,0.00039452,8]
[394701155,1763905909653,-500.0,0.00039452,8]
[394701156,1763905909664,-502.47146924,0.00039452,8]
[394701157,1763905909676,-600.0,0.00039452,8]
[394701158,1763905909691,-271.35769333,0.00039452,8]
[394701159,1763905909702,-500.0,0.00039452,8]
[394701160,1763905909713,-500.0,0.00039452,8]
[394701161,1763905909724,-501.88195327,0.00039452,8]
[394701162,1763905909735,-500.0,0.00039452,8]
[394701163,1763905909747,-500.0,0.00039452,2]
[394701164,1763905909760,-502.64623936,0.00039452,8]
[394701165,1763905909771,-500.0,0.00039452,8]
[394701166,1763905909784,-614.26313295,0.00039452,8]
[394701167,1763905909796,-500.0,0.00039452,8]
[394701168,1763905909807,-502.23008965,0.00039452,8]
[394701169,1763905909819,-808.78,0.00039452,8]
[394701170,1763905909829,-503.76150317,0.00039452,8]
[394701171,1763905909841,-500.0,0.00039452,8]
[394701172,1763905909853,-697.92,0.00039452,8]
[394701173,1763905909864,-500.0,0.00039452,8]
[394701174,1763905909875,-528.17325204,0.00039452,8]
[394701175,1763905909886,-550.54,0.00039452,8]
[394701176,1763905909897,-675.89,0.00039452,8]
[394701177,1763905909908,-503.92929907,0.00039452,8]
[394701178,1763905909920,-641.23,0.00039452,8]
[394701179,1763905909931,-505.59803039,0.00039452,8]
[394701180,1763905909942,-504.33427885,0.00039452,8]
[394701181,1763905909953,-524.55737651,0.00039452,8]
[394701182,1763905910362,-607.46474502,0.00039452,8]
[394701183,1763905910373,-503.1170471,0.00039452,8]
[394701184,1763905910382,-500.0,0.00039452,8]
[394701185,1763905910391,-504.55452204,0.00039452,8]
[394701186,1763905910401,-506.66221337,0.00039452,8]
[394701187,1763905910411,-521.33398541,0.00039452,8]
[394701188,1763905910422,-500.0,0.00039452,8]
[394701189,1763905910431,-500.0,0.00039452,8]
[394701190,1763905910441,-500.0,0.00039452,8]
[394701191,1763905910450,-666.81,0.00039452,8]
[394701192,1763905910461,-500.0,0.00039452,8]
[394701193,1763905910470,-525.94314541,0.00039452,8]
[394701194,1763905910484,-500.0,0.00039452,8]
[394701195,1763905910493,-502.67695968,0.00039452,8]
[394701196,1763905910502,-500.0,0.00039452,8]
[394701197,1763905910512,-500.0,0.00039452,8]
[394701198,1763905910524,-629.21,0.00039452,8]
[394701199,1763905910533,-526.80662943,0.00039452,8]
[394701200,1763905910542,-503.87118454,0.00039452,8]
[394701201,1763905910552,-163.78449933,0.00039452,8]
[394701202,1763905910562,-500.0,0.00039452,8]
[394701203,1763905910571,-808.03,0.00039452,8]
[394701204,1763905910580,-650.1,0.00039452,8]
[394701205,1763905910589,-644.86,0.00039452,8]
[394701206,1763905910598,-503.43232396,0.00039452,8]
[394701207,1763905910607,-500.0,0.00039452,8]
[394701208,1763905910617,-500.0,0.00039452,8]
[394701209,1763905910626,-500.0,0.00039452,8]
[394701210,1763905910635,-502.58275633,0.00039452,8]
[394701211,1763905910644,-500.0,0.00039452,8]
[394701212,1763905910653,-500.0,0.00039452,8]
[394701213,1763905910662,-500.0,0.00039452,8]
[394701214,1763905910671,-500.0,0.00039452,8]
[394701215,1763905910680,-500.0,0.00039452,8]
[394701216,1763905910688,-500.0,0.00039452,8]
[394701217,1763905910697,-500.0,0.00039452,8]
[394701218,1763905910706,-500.0,0.00039452,8]
[394701219,1763905910715,-500.0,0.00039452,8]
[394701220,1763905910724,-500.0,0.00039452,8]
[394701221,1763905910733,-530.41,0.00039452,8]
[394701222,1763905910742,-500.0,0.00039452,8]
[394701223,1763905910752,-311.55679413,0.00039452,8]
[394701224,1763905910761,-500.0,0.00039452,8]
[394701225,1763905910770,-501.86406724,0.00039452,8]
[394701226,1763905910779,-538.08,0.00039452,8]
[394701227,1763905910787,-691.59,0.00039452,8]
[394701228,1763905910796,-618.91,0.00039452,8]
[394701229,1763905910805,-500.0,0.00039452,8]
[394701230,1763905910814,-500.0,0.00039452,8]
[394701231,1763905910823,-500.0,0.00039452,8]
[394701232,1763905910833,-623.43,0.00039452,8]
[394701233,1763905910842,-500.0,0.00039452,8]
[394701234,1763905910851,-500.0,0.00039452,8]
[394701235,1763905910860,-659.79,0.00039452,8]
[394701236,1763905910870,-500.0,0.00039452,8]
[394701237,1763905910879,-500.0,0.00039452,8]
[394701238,1763905910888,-500.0,0.00039452,8]